bitfinex/quotes_SOLUSD_20251216
["timestamp","ask_amount","ask_price","bid_price","bid_amount"]
[1765918862506,8.49361274,128.48,128.45,8.54]
[1765918862707,0.71,128.46,128.42,0.88]
[1765918862902,0.71,128.46,128.43,8.46630541]
[1765918863103,27.95189418,128.48,128.44,0.68]
[1765918863635,27.95189418,128.48,128.44,8.46566615]
[1765918864015,27.24189418,128.48,128.44,8.46566615]
[1765918864220,0.72,128.47,128.44,8.46566615]
[1765918864410,0.72,128.47,128.43,8.47605799]
[1765918864614,0.72,128.47,128.43,12.26312569]
[1765918865928,8.50422234,128.47,128.43,12.26312569]
[1765918866514,8.50422234,128.47,128.43,20.80312569]
[1765918867817,27.24159401,128.48,128.43,20.80312569]
[1765918868132,0.72,128.47,128.43,20.80312569]
[1765918868833,0.72,128.47,128.44,0.69]
[1765918869134,8.50422839,128.47,128.44,0.69]
[1765918869432,8.50422839,128.47,128.43,20.11312569]
[1765918869433,8.50422839,128.47,128.43,20.80312569]
[1765918869831,8.50422839,128.47,128.44,7.78572821]
[1765918870031,7.78360429,128.48,128.45,0.69]
[1765918870636,7.78360429,128.48,128.45,4.47665626]
[1765918870832,0.72,128.48,128.45,4.47665626]
[1765918871007,7.78296295,128.49,128.46,0.69]
[1765918871416,7.78296295,128.49,128.46,8.47443166]
[1765918871731,7.78296295,128.49,128.46,4.47665626]
[1765918871933,8.50296295,128.49,128.46,0.69]
[1765918872304,0.72,128.48,128.45,12.26151165]
[1765918872932,7.78333337,128.48,128.42,19.66644238]
[1765918873134,0.72,128.47,128.43,13.01665626]
[1765918873331,8.50333337,128.48,128.44,12.26229796]
[1765918873521,8.50333337,128.48,128.45,12.26175646]
[1765918876234,7.78333337,128.48,128.45,11.57175646]
[1765918876442,7.78290036,128.49,128.46,4.47665626]
[1765918876619,0.72,128.52,128.49,0.69]
[1765918876808,0.72,128.52,128.48,3.78665626]
[1765918877711,8.50179162,128.51,128.48,3.78665626]
[1765918878713,8.50179162,128.51,128.48,11.56995518]
[1765918880042,8.50179162,128.51,128.48,7.78329892]
[1765918880341,8.50179162,128.51,128.48,11.56995518]
[1765918883524,8.50179162,128.51,128.48,10.20514666]
[1765918883726,8.50137817,128.52,128.49,3.11184774]
[1765918884245,8.50137817,128.52,128.49,11.65184774]
[1765918884816,8.50137817,128.52,128.49,10.96184774]
[1765918885433,8.50137817,128.52,128.49,19.43440591]
[1765918887149,27.23149109,128.53,128.5,3.11184774]
[1765918887449,27.95149109,128.53,128.5,3.11184774]
[1765918887742,27.23149109,128.53,128.49,18.74440591]
[1765918887932,0.72,128.52,128.49,19.43440591]
[1765918888542,8.50122503,128.52,128.49,19.43440591]
[1765918890156,8.50122503,128.52,128.49,10.96184774]
[1765918890830,8.50122503,128.52,128.49,11.65184774]
[1765918891331,8.50122503,128.52,128.49,9.23]
[1765918891634,0.72,128.51,128.49,8.54]
[1765918891830,0.72,128.51,128.48,3.11184774]
[1765918892051,8.50190724,128.51,128.48,3.11184774]
[1765918892259,8.50190724,128.51,128.48,11.65184774]
[1765918893446,8.50190724,128.51,128.48,3.11184774]
[1765918894850,8.50190724,128.51,128.48,10.89515438]
[1765918895253,0.7,128.5,128.47,2.42184774]
[1765918895452,0.7,128.5,128.46,19.44603707]
[1765918895656,0.7,128.5,128.46,3.12184774]
[1765918895949,0.7,128.5,128.46,19.44635768]
[1765918896350,0.7,128.5,128.47,3.12184774]
[1765918896735,8.48257611,128.5,128.47,3.12184774]
[1765918898433,8.48257611,128.5,128.47,2.42184774]
[1765918898952,8.48257611,128.5,128.46,19.44635768]
[1765918899551,8.48257611,128.5,128.46,18.74635768]
[1765918899752,8.48257611,128.5,128.47,0.7]
[1765918902656,0.7,128.49,128.45,8.4851304]
[1765918902835,0.7,128.49,128.45,17.0251304]
[1765918903736,0.7,128.48,128.45,17.0251304]
[1765918904354,8.48294061,128.49,128.46,0.7]
[1765918904749,7.78294061,128.49,128.46,7.78439551]
[1765918905060,0.7,128.49,128.46,8.48439551]
[1765918905269,0.7,128.49,128.46,10.90624325]
[1765918906861,8.48271561,128.49,128.46,8.48439551]
[1765918907564,0.7,128.5,128.47,0.7]
[1765918907869,17.0220581,128.51,128.47,0.7]
[1765918908049,16.3220581,128.51,128.47,0.7]
[1765918908238,8.48220199,128.5,128.47,3.12184774]
[1765918909069,8.48220199,128.5,128.47,10.90573961]
[1765918909277,7.78220199,128.5,128.47,8.48389187]
[1765918909565,0.7,128.49,128.46,17.02421411]
[1765918909770,0.7,128.49,128.46,19.44606185]
[1765918909975,8.48220199,128.5,128.47,0.7]
[1765918910271,0.7,128.49,128.46,19.44606185]
[1765918910870,8.48220199,128.5,128.46,19.44606185]
[1765918911776,0.7,128.49,128.46,19.44606185]
[1765918912370,0.7,128.49,128.47,0.7]
[1765918912550,0.7,128.49,128.46,10.20606185]
[1765918912760,0.7,128.49,128.46,7.78421411]
[1765918912953,0.7,128.47,128.43,0.7]
[1765918913175,0.7,128.46,128.43,0.7]
[1765918913743,7.78220199,128.5,128.45,2.42184774]
[1765918914070,0.7,128.49,128.45,8.54]
[1765918914243,8.48391842,128.47,128.44,0.7]
[1765918914448,0.7,128.46,128.42,19.64868906]
[1765918915252,0.7,128.46,128.42,18.94868906]
[1765918915443,16.32356931,128.48,128.44,2.42184774]
[1765918915650,0.7,128.5,128.47,0.7]
[1765918915958,0.7,128.5,128.47,3.12184774]
[1765918916358,8.48237879,128.5,128.47,3.12184774]
[1765918919378,0.7,128.49,128.46,8.4842325]
[1765918919680,0.7,128.49,128.47,2.42184774]
[1765918919881,8.48237879,128.5,128.47,3.12184774]
[1765918920259,0.7,128.49,128.47,2.42184774]
[1765918920776,0.7,128.49,128.47,3.12184774]
[1765918923248,8.48237879,128.5,128.47,3.12184774]
[1765918924260,8.48237879,128.5,128.47,2.42184774]
[1765918924261,0.69,128.49,128.47,2.42184774]
[1765918926374,8.47272542,128.49,128.47,2.42184774]
[1765918926581,8.47272542,128.49,128.47,3.10184774]
[1765918927480,0.69,128.48,128.46,2.42184774]
[1765918927861,27.92949248,128.49,128.47,2.42184774]
[1765918928374,27.23949248,128.49,128.47,3.10184774]
[1765918928558,27.92949248,128.49,128.47,2.42184774]
[1765918929578,8.47272542,128.49,128.47,2.42184774]
[1765918930885,7.78272542,128.49,128.47,3.10184774]
[1765918931069,8.47272542,128.49,128.47,3.10184774]
[1765918931257,0.69,128.52,128.49,0.68]
[1765918931453,0.69,128.52,128.5,2.42184774]
[1765918931760,8.4711395,128.52,128.5,2.42184774]
[1765918931962,7.7811395,128.52,128.5,2.42184774]
[1765918932174,0.69,128.51,128.48,2.42184774]
[1765918932376,0.69,128.51,128.48,3.10184774]
[1765918932582,0.69,128.51,128.48,0.68]
[1765918934083,8.47170892,128.51,128.48,3.10184774]
[1765918938282,8.47170892,128.51,128.48,10.20506328]
[1765918938584,7.78170892,128.51,128.49,0.68]
[1765918938757,7.78113838,128.52,128.5,3.10184774]
[1765918938962,8.4705996,128.53,128.5,3.10184774]
[1765918939356,7.7805996,128.53,128.5,2.42184774]
[1765918939585,8.4705996,128.53,128.5,3.10184774]
[1765918940260,0.69,128.52,128.5,2.42184774]
[1765918940456,0.69,128.52,128.5,2.42125582]
[1765918940659,0.69,128.52,128.49,10.88388635]
[1765918941371,0.69,128.52,128.49,8.46263053]
[1765918941575,0.69,128.52,128.49,10.88388635]
[1765918942187,0.69,128.52,128.5,0.68]
[1765918943289,8.4705996,128.53,128.5,3.10125582]
[1765918943590,0.69,128.52,128.5,0.68]
[1765918944085,0.69,128.52,128.48,10.96125582]
[1765918944267,8.47129504,128.52,128.49,3.10125582]
[1765918944765,8.47129504,128.52,128.49,0.68]
[1765918944965,8.47129504,128.52,128.49,3.10125582]
[1765918945375,8.47129504,128.52,128.49,4.46374328]
[1765918947689,8.47129504,128.52,128.49,3.78374328]
[1765918947881,8.47129504,128.52,128.49,0.68]
[1765918948189,8.47129504,128.52,128.49,4.46374328]
[1765918949287,8.47057965,128.53,128.5,4.46374328]
[1765918949991,8.47057965,128.53,128.5,12.24578385]
[1765918950192,0.69,128.52,128.5,12.24578385]
[1765918950596,0.69,128.52,128.5,4.46374328]
[1765918951393,0.69,128.52,128.5,0.68]
[1765918951578,0.69,128.52,128.5,4.46374328]
[1765918952897,7.7799995,128.54,128.5,11.56568681]
[1765918953197,7.7799995,128.54,128.51,3.78374328]
[1765918953494,36.7756793,128.57,128.53,3.78374328]
[1765918953495,8.46929137,128.55,128.53,3.78374328]
[1765918953708,8.46929137,128.55,128.5,8.46194353]
[1765918953709,0.69,128.54,128.5,8.46194353]
[1765918954013,0.69,128.54,128.5,3.78374328]
[1765918954599,0.71,128.53,128.49,20.75623471]
[1765918955091,0.71,128.52,128.49,20.75623471]
[1765918955312,8.49082055,128.53,128.5,0.66]
[1765918955890,0.71,128.52,128.5,0.66]
[1765918956088,0.71,128.52,128.49,20.76623471]
[1765918956285,8.49091115,128.52,128.49,20.76623471]
[1765918957289,8.49091115,128.52,128.5,0.66]
[1765918959204,0.71,128.51,128.48,22.6644662]
[1765918959496,0.71,128.51,128.48,31.2044662]
[1765918959797,0.71,128.51,128.49,0.66]
[1765918959999,8.49091115,128.52,128.49,4.44374328]
[1765918960182,8.49091115,128.52,128.49,12.2264213]
[1765918960583,8.49091115,128.52,128.49,4.44374328]
[1765918963201,0.71,128.51,128.49,3.78374328]
[1765918963584,0.71,128.51,128.48,31.20442543]
[1765918963909,0.71,128.51,128.48,30.54442543]
[1765918964081,0.71,128.51,128.49,0.66]
[1765918964285,7.78091115,128.52,128.49,0.66]
[1765918964486,0.71,128.51,128.49,0.66]
[1765918966033,8.4915502,128.51,128.49,0.66]
[1765918966332,0.71,128.49,128.44,4.44374328]
[1765918966500,0.71,128.48,128.44,12.229475]
[1765918966706,0.71,128.48,128.44,8.44573172]
[1765918966907,0.71,128.48,128.44,11.569475]
[1765918967107,8.49367674,128.48,128.45,0.66]
[1765918968808,8.49367674,128.48,128.44,3.78374328]
[1765918968809,0.71,128.47,128.44,3.78374328]
[1765918968986,0.71,128.47,128.44,4.44374328]
[1765918969307,0.71,128.5,128.47,0.66]
[1765918969515,0.71,128.5,128.47,4.44374328]
[1765918970328,7.7823652,128.5,128.47,3.78374328]
[1765918970503,7.7823652,128.5,128.46,4.44374328]
[1765918970504,0.71,128.49,128.46,4.44374328]
[1765918970918,8.49279358,128.49,128.46,12.22826362]
[1765918971117,0.71,128.48,128.46,12.22826362]
[1765918971306,0.71,128.49,128.46,12.22826362]
[1765918971712,0.71,128.49,128.47,3.78374328]
[1765918972023,7.78234785,128.5,128.47,3.78374328]
[1765918972317,8.49234785,128.5,128.47,12.22759015]
[1765918972519,7.78234785,128.5,128.48,4.44374328]
[1765918972822,0.71,128.52,128.49,4.44374328]
[1765918973004,0.71,128.52,128.5,3.78374328]
[1765918973314,0.71,128.52,128.49,3.78374328]
[1765918973518,0.71,128.52,128.49,4.44374328]
[1765918973722,8.49107057,128.52,128.49,4.44374328]
[1765918974714,0.71,128.51,128.49,4.44374328]
[1765918974913,8.49107057,128.52,128.49,4.44374328]
[1765918979419,7.78107057,128.52,128.48,7.78318829]
[1765918979600,8.49107057,128.52,128.49,4.44374328]
[1765918979919,20.15877217,128.55,128.52,0.66]
[1765918980102,8.48999162,128.54,128.51,4.44374328]
[1765918982219,7.77999162,128.54,128.51,4.44374328]
[1765918982421,8.48999162,128.54,128.51,4.44374328]
[1765918984223,8.48999162,128.54,128.46,84.56141624]
[1765918984224,0.67,128.51,128.46,8.54]
[1765918984397,0.67,128.5,128.46,13.00374328]
[1765918984722,4.45374328,128.48,128.42,0.2]
[1765918984910,4.45374328,128.48,128.45,4.46374328]
[1765918984911,0.67,128.48,128.45,4.46374328]
[1765918985223,0.67,128.49,128.45,4.46374328]
[1765918985516,0.67,128.49,128.45,12.24886069]
[1765918985719,3.78374328,128.49,128.45,4.46374328]
[1765918986020,8.45385684,128.48,128.45,4.46374328]
[1765918987208,0.67,128.5,128.46,0.68]
[1765918987492,0.67,128.49,128.46,0.68]
[1765918987697,0.67,128.49,128.46,4.46374328]
[1765918988218,8.45329857,128.49,128.46,3.78374328]
[1765918989000,8.45329857,128.49,128.45,12.24867212]
[1765918989318,29.90311392,128.53,128.49,0.68]
[1765918989319,7.78028475,128.53,128.49,0.68]
[1765918989516,7.78028475,128.53,128.51,0.68]
[1765918989705,7.78028475,128.53,128.51,4.46374328]
[1765918990222,7.77991154,128.54,128.52,4.46374328]
[1765918990926,7.77991154,128.54,128.52,3.78374328]
[1765918991123,8.44936452,128.55,128.52,3.78374328]
[1765918991502,7.77877697,128.56,128.54,3.78374328]
[1765918991698,7.77811576,128.57,128.54,4.46374328]
[1765918992005,7.77811576,128.57,128.55,4.46374328]
[1765918992536,8.44695198,128.59,128.56,4.46374328]
[1765918992702,8.44695198,128.59,128.57,3.78374328]
[1765918992902,12.5936882,128.62,128.58,3.78374328]
[1765918992903,8.44544514,128.61,128.58,3.78374328]
[1765918993111,0.67,128.6,128.58,3.78374328]
[1765918993326,0.67,128.6,128.57,4.46374328]
[1765918994305,7.77665448,128.59,128.57,4.46374328]
[1765918995722,8.44630798,128.6,128.57,4.46374328]
[1765918995918,19.43861286,128.61,128.58,3.78374328]
[1765918995919,7.775669,128.61,128.58,3.78374328]
[1765918996123,0.67,128.62,128.59,3.78374328]
[1765918996329,11.10767296,128.64,128.61,3.78374328]
[1765918996506,31.14409746,128.65,128.62,3.78374328]
[1765918996704,8.44324092,128.65,128.62,4.46374328]
[1765918997718,3.78374328,128.64,128.59,3.78374328]
[1765918997918,0.67,128.63,128.59,4.46374328]
[1765918998119,0.67,128.63,128.6,4.46374328]
[1765918999336,7.77459094,128.63,128.6,4.46374328]
[1765919000921,7.77459094,128.63,128.6,0.68]
[1765919001126,7.77459094,128.63,128.61,3.78374328]
[1765919001326,8.44367443,128.64,128.61,3.78374328]
[1765919002530,8.44367443,128.64,128.61,4.46374328]
[1765919005238,8.44367443,128.64,128.6,0.68]
[1765919005419,8.44367443,128.64,128.61,4.46374328]
[1765919006733,27.20559657,128.65,128.61,3.78374328]
[1765919006942,27.20559657,128.65,128.58,4.46374328]
[1765919006943,0.67,128.62,128.58,4.46374328]
[1765919007610,0.67,128.62,128.58,3.09827188]
[1765919008224,0.67,128.62,128.59,2.41827188]
[1765919009022,8.44535397,128.62,128.59,2.41827188]
[1765919009536,7.77449505,128.63,128.6,3.09827188]
[1765919009935,7.77449505,128.63,128.61,2.41827188]
[1765919010124,8.44384804,128.64,128.61,3.09717912]
[1765919011827,0.67,128.63,128.6,2.41717912]
[1765919012030,0.67,128.63,128.59,3.09717912]
[1765919012440,0.67,128.62,128.57,0.68]
[1765919012644,0.67,128.62,128.59,2.41717912]
[1765919013029,8.44523267,128.62,128.59,2.41717912]
[1765919013327,8.44523267,128.62,128.59,3.09717912]
[1765919015228,8.44523267,128.62,128.59,10.873808]
[1765919017944,8.44523267,128.62,128.59,0.68]
[1765919018153,0.68,128.61,128.59,2.41717912]
[1765919018847,0.68,128.61,128.54,100.69693621]
[1765919018848,0.68,128.58,128.51,8.48146752]
[1765919019146,0.68,128.55,128.51,10.89864664]
[1765919019356,0.68,128.54,128.5,8.48189673]
[1765919019527,0.68,128.54,128.5,10.89907585]
[1765919019938,0.68,128.53,128.5,8.48189673]
[1765919020146,0.68,128.53,128.5,10.89907585]
[1765919022344,0.68,128.53,128.5,8.48189673]
[1765919022652,0.68,128.53,128.5,10.89907585]
[1765919023044,0.68,128.53,128.51,2.41717912]
[1765919023245,7.77725929,128.58,128.53,0.7]
[1765919023443,7.77725929,128.58,128.57,2.41717912]
[1765919023444,7.78011402,128.58,128.57,2.41717912]
[1765919023760,7.78011402,128.58,128.55,0.7]
[1765919023761,0.68,128.6,128.56,2.41717912]
[1765919023944,8.4567383,128.59,128.56,2.41717912]
[1765919026055,8.4567383,128.59,128.55,10.89588851]
[1765919026269,0.68,128.58,128.53,10.43767296]
[1765919026447,0.68,128.58,128.54,2.41717912]
[1765919026640,0.68,128.58,128.54,3.11717912]
[1765919027035,0.68,128.58,128.54,10.89684716]
[1765919027963,0.68,128.57,128.53,18.91765256]
[1765919028164,0.68,128.56,128.53,18.91765256]
[1765919028335,0.68,128.56,128.53,21.33483168]
[1765919029750,0.68,128.56,128.53,18.91765256]
[1765919029953,0.68,128.54,128.51,0.7]
[1765919030259,0.68,128.54,128.51,8.48137696]
[1765919030562,19.44466049,128.57,128.53,3.11717912]
[1765919030563,8.45797361,128.57,128.53,3.11717912]
[1765919030750,8.45797361,128.57,128.54,0.7]
[1765919033065,0.68,128.56,128.53,10.89746097]
[1765919033571,0.68,128.56,128.53,3.11717912]
[1765919033882,0.68,128.56,128.53,2.41717912]
[1765919034057,8.45899511,128.56,128.52,8.48073184]
[1765919034377,8.45899511,128.56,128.52,10.89791096]
[1765919034679,7.77899511,128.56,128.52,10.89791096]
[1765919034973,0.68,128.55,128.52,10.19791096]
[1765919035347,8.4593002,128.55,128.52,3.11717912]
[1765919035547,0.68,128.54,128.51,3.11717912]
[1765919035746,0.68,128.54,128.5,7.78171499]
[1765919035978,0.68,128.54,128.51,2.41717912]
[1765919036348,0.68,128.54,128.5,10.19889411]
[1765919036648,29.64416504,128.55,128.47,38.91834451]
[1765919036649,0.68,128.52,128.48,3.11717912]
[1765919036957,0.68,128.52,128.44,62.31330484]
[1765919036958,7.7793002,128.55,128.52,0.7]
[1765919037161,8.4593002,128.55,128.52,3.11717912]
[1765919037577,8.4593002,128.55,128.52,2.41717912]
[1765919037874,0.68,128.54,128.52,2.41717912]
[1765919038042,8.45968279,128.54,128.52,2.41717912]
[1765919039468,8.45968279,128.54,128.51,7.18434507]
[1765919039674,8.45968279,128.54,128.51,14.9658154]
[1765919040257,8.45968279,128.54,128.51,14.2658154]
[1765919040457,8.45968279,128.54,128.51,7.78147033]
[1765919040657,0.68,128.53,128.51,7.78147033]
[1765919041498,0.68,128.52,128.49,6.48434507]
[1765919041699,0.68,128.52,128.48,18.22062129]
[1765919041984,0.68,128.52,128.48,25.40496636]
[1765919043584,0.68,128.52,128.49,14.26687538]
[1765919044149,0.67,128.51,128.48,18.9207196]
[1765919044354,0.67,128.51,128.48,25.40506467]
[1765919045095,7.78050262,128.53,128.5,6.48434507]
[1765919045387,0.67,128.52,128.5,6.48434507]
[1765919045756,7.78050262,128.53,128.5,14.26636614]
[1765919045957,8.44932961,128.55,128.52,7.16434507]
[1765919046756,8.44932961,128.55,128.53,6.48434507]
[1765919046956,8.44932961,128.55,128.51,0.68]
[1765919047171,8.44932961,128.55,128.52,6.48434507]
[1765919047778,7.77932961,128.55,128.52,6.48434507]
[1765919047966,8.44932961,128.55,128.52,6.48434507]
[1765919048778,0.67,128.56,128.53,7.16434507]
[1765919048973,0.67,128.56,128.52,14.94511335]
[1765919049172,7.77813168,128.57,128.49,14.26666961]
[1765919049173,0.67,128.53,128.49,14.26666961]
[1765919049481,0.67,128.52,128.49,7.78232454]
[1765919051559,0.67,128.52,128.49,14.26666961]
[1765919051760,0.67,128.52,128.49,14.94666961]
[1765919053461,0.67,128.51,128.48,7.16434507]
[1765919053859,8.45106701,128.52,128.49,0.68]
[1765919054061,8.45106701,128.52,128.48,14.94728923]
[1765919054878,0.67,128.51,128.48,7.16434507]
[1765919055261,7.78106701,128.52,128.48,7.16434507]
[1765919055461,8.45106701,128.52,128.48,7.16434507]
[1765919055686,8.45106701,128.52,128.48,14.26759076]
[1765919055987,8.45106701,128.52,128.49,0.68]
[1765919056357,8.45106701,128.52,128.49,14.9470319]
[1765919057472,0.67,128.54,128.51,7.16434507]
[1765919057679,0.67,128.54,128.51,6.48434507]
[1765919057883,0.67,128.54,128.5,6.48434507]
[1765919058281,0.67,128.54,128.49,8.46268683]
[1765919058282,0.67,128.53,128.49,8.46268683]
[1765919058480,0.67,128.53,128.5,6.48434507]
[1765919058893,8.45064446,128.53,128.5,6.48434507]
[1765919059080,7.78064446,128.53,128.5,6.48434507]
[1765919059278,0.67,128.52,128.49,14.9470319]
[1765919059471,0.67,128.52,128.49,10.8842587]
[1765919060283,0.67,128.52,128.5,2.42157187]
[1765919060587,8.45064446,128.53,128.5,2.42157187]
[1765919061085,8.45064446,128.53,128.5,10.20366831]
[1765919061496,8.44998395,128.54,128.51,3.10157187]
[1765919062572,7.77998395,128.54,128.52,3.10157187]
[1765919063576,7.77998395,128.54,128.52,2.42157187]
[1765919063766,8.44998395,128.54,128.52,2.42157187]
[1765919063972,8.44998395,128.54,128.51,8.46145579]
[1765919064300,8.44998395,128.54,128.52,2.42157187]
[1765919065077,8.44998395,128.54,128.51,10.88302766]
[1765919065272,7.77998395,128.54,128.51,2.42157187]
[1765919065581,27.22918264,128.54,128.5,10.20364856]
[1765919065791,8.44998395,128.54,128.51,3.10157187]
[1765919066677,7.77998395,128.54,128.52,0.68]
[1765919066877,7.77998395,128.54,128.51,2.42157187]
[1765919067071,8.44998395,128.54,128.51,3.10157187]
[1765919067498,8.44998395,128.54,128.51,4.46260369]
[1765919067695,0.67,128.53,128.5,4.46260369]
[1765919068576,0.67,128.53,128.49,3.78260369]
[1765919068794,0.67,128.53,128.49,4.46260369]
[1765919069599,7.78089013,128.52,128.5,0.68]
[1765919070204,7.78089013,128.52,128.49,12.2451014]
[1765919071373,0.67,128.52,128.49,12.2451014]
[1765919073599,0.67,128.54,128.5,4.46260369]
[1765919073810,0.67,128.54,128.5,3.78260369]
[1765919074384,7.78028475,128.53,128.5,3.78260369]
[1765919074580,0.71,128.52,128.49,8.44249771]
[1765919074788,0.71,128.52,128.49,12.2251014]
[1765919076708,7.78089062,128.52,128.5,0.69]
[1765919076907,8.45089062,128.52,128.49,3.78260369]
[1765919077111,0.67,128.51,128.49,3.78260369]
[1765919077587,8.45089062,128.52,128.49,4.47260369]
[1765919081609,8.45089062,128.52,128.49,12.25530359]
[1765919082510,8.45089062,128.52,128.49,4.47260369]
[1765919082715,8.45089062,128.52,128.49,4.47378772]
[1765919083712,8.45089062,128.52,128.49,12.25647592]
[1765919084621,8.45089062,128.52,128.49,4.47378772]
[1765919084916,7.78089062,128.52,128.48,7.78302089]
[1765919085131,7.78089062,128.52,128.46,3.78378772]
[1765919085132,3.78378772,128.51,128.46,3.78378772]
[1765919085321,0.67,128.5,128.46,11.56822787]
[1765919085702,0.67,128.49,128.46,12.25822787]
[1765919086920,7.78236343,128.5,128.46,11.56822787]
[1765919087120,8.45236343,128.5,128.48,4.47378772]
[1765919087326,7.78171893,128.51,128.49,4.47378772]
[1765919087712,8.45113327,128.52,128.49,4.47378772]
[1765919088327,8.45113327,128.52,128.49,0.69]
[1765919088513,0.67,128.51,128.49,3.78378772]
[1765919093232,8.45154253,128.51,128.48,12.25677531]
[1765919093412,0.67,128.5,128.46,4.47378772]
[1765919093728,0.67,128.5,128.47,0.69]
[1765919093935,0.67,128.5,128.47,4.47378772]
[1765919094642,7.78270682,128.49,128.47,4.47378772]
[1765919095134,7.78270682,128.49,128.47,0.69]
[1765919095338,8.45239643,128.5,128.47,12.25752927]
[1765919095716,8.45239643,128.5,128.47,4.47378772]
[1765919096029,8.45239643,128.5,128.47,0.69]
[1765919096235,8.45239643,128.5,128.46,4.47378772]
[1765919096236,0.67,128.49,128.46,4.47378772]
[1765919096532,0.67,128.48,128.43,4.67378772]
[1765919096740,0.67,128.46,128.43,12.45980145]
[1765919097246,0.67,128.46,128.43,11.76980145]
[1765919097548,0.67,128.46,128.43,0.2]
[1765919097911,0.67,128.46,128.43,0.89]
[1765919098632,8.45504527,128.46,128.43,0.89]
[1765919099013,0.67,128.45,128.43,0.2]
[1765919099213,7.78504527,128.46,128.43,0.2]
[1765919099438,8.45504527,128.46,128.43,4.67378772]
[1765919099639,0.67,128.48,128.45,0.69]
[1765919099811,0.67,128.51,128.48,0.69]
[1765919100018,0.67,128.51,128.48,3.78378772]
[1765919100213,36.04306038,128.52,128.43,37.88984953]
[1765919100214,0.67,128.49,128.43,37.88984953]
[1765919100417,0.67,128.49,128.46,4.47378772]
[1765919100625,27.90311546,128.52,128.48,3.78378772]
[1765919100822,7.78089013,128.52,128.46,10.43767296]
[1765919101031,0.67,128.5,128.46,14.22146068]
[1765919101219,0.67,128.5,128.46,22.69575516]
[1765919101841,0.67,128.5,128.47,3.78378772]
[1765919102944,8.45251701,128.5,128.47,3.78378772]
[1765919104237,7.78251701,128.5,128.46,22.69575516]
[1765919104431,0.68,128.49,128.44,7.7853734]
[1765919104622,0.68,128.48,128.44,0.69]
[1765919104826,8.46391842,128.47,128.44,4.47378772]
[1765919105029,8.46391842,128.47,128.44,12.2595127]
[1765919105231,8.46391842,128.47,128.44,8.47572498]
[1765919105428,8.46391842,128.47,128.44,12.2595127]
[1765919106545,0.68,128.49,128.44,0.69]
[1765919106744,0.68,128.49,128.45,4.47378772]
[1765919106920,0.68,128.49,128.46,4.47378772]
[1765919107125,0.68,128.49,128.45,3.78378772]
[1765919107321,27.91832689,128.5,128.46,4.47378772]
[1765919107635,27.91832689,128.5,128.44,27.24990828]
[1765919107636,8.46210116,128.5,128.47,4.47378772]
[1765919108243,8.46210116,128.5,128.44,8.47556696]
[1765919108244,0.68,128.49,128.44,8.47556696]
[1765919108444,0.68,128.49,128.45,4.47378772]
[1765919108629,8.46331257,128.48,128.45,4.47378772]
[1765919108841,8.46331257,128.48,128.45,22.69653557]
[1765919109042,8.46331257,128.48,128.45,18.91274785]
[1765919109246,0.68,128.48,128.45,22.69653557]
[1765919110264,0.68,128.47,128.44,10.43767296]
[1765919110648,0.68,128.5,128.47,0.69]
[1765919110962,0.68,128.5,128.47,4.47378772]
[1765919111931,8.46235564,128.5,128.47,4.47378772]
[1765919112834,8.46235564,128.5,128.47,12.25760796]
[1765919113268,30.56926473,128.53,128.5,0.69]
[1765919113470,0.68,128.52,128.49,4.47378772]
[1765919114049,8.46089013,128.52,128.49,4.47378772]
[1765919114950,0.68,128.54,128.5,3.78378772]
[1765919115472,27.22887816,128.54,128.5,4.47378772]
[1765919115643,0.68,128.53,128.5,4.47378772]
[1765919116137,8.46085322,128.53,128.5,3.78378772]
[1765919117565,10.43767296,128.56,128.5,3.78378772]
[1765919117768,7.77791129,128.57,128.55,3.78378772]
[1765919117938,7.77791129,128.57,128.54,4.47378772]
[1765919118137,8.45791129,128.57,128.54,3.78378772]
[1765919118462,0.68,128.56,128.52,3.78378772]
[1765919118637,0.68,128.56,128.52,4.47378772]
[1765919119156,0.68,128.56,128.51,3.78378772]
[1765919119157,0.68,128.54,128.51,3.78378772]
[1765919119737,0.68,128.54,128.5,12.25577962]
[1765919120139,0.68,128.53,128.49,3.78378772]